bitfinex/quotes_ETHUSD_20251018
["timestamp","ask_amount","ask_price","bid_price","bid_amount"]
[1760757159875,0.0258046,3868.1,3868.0,0.1288]
[1760757160581,0.0258046,3868.3,3868.0,0.1288]
[1760757162778,0.0258046,3868.3,3868.0,0.5985]
[1760757163109,2.6,3868.4,3868.0,0.5985]
[1760757163110,2.6,3868.4,3868.0,0.1288]
[1760757163289,0.002,3869.2,3867.2,2.58579408]
[1760757163290,2.6,3868.3,3868.2,0.2227]
[1760757163483,0.1566046,3869.2,3868.4,2.58498508]
[1760757163678,1.728,3869.0,3868.6,0.1288]
[1760757163879,0.0258046,3868.9,3868.6,0.1288]
[1760757164119,0.0258046,3868.9,3868.6,2.71370195]
[1760757165577,0.0258046,3868.9,3868.6,3.18340195]
[1760757166542,0.0258046,3868.9,3868.6,0.1288]
[1760757166739,2.6,3868.8,3868.7,3.05454762]
[1760757166947,2.6,3868.8,3868.7,3.61849362]
[1760757167146,2.6,3868.8,3868.7,3.74729362]
[1760757175703,2.6,3868.8,3868.7,2.71364762]
[1760757178875,2.6,3868.8,3868.7,0.1288]
[1760757179080,2.6998,3868.8,3868.7,0.1288]
[1760757179780,2.6,3868.8,3868.7,0.1288]
[1760757180018,2.6998,3868.8,3868.7,0.1288]
[1760757180234,3.32214198,3868.8,3868.7,0.1288]
[1760757180739,3.32214198,3868.8,3868.0,0.001]
[1760757180885,3.37281516,3868.4,3868.2,0.1288]
[1760757181091,2.6258046,3868.3,3868.2,0.1288]
[1760757181603,2.6,3868.3,3868.2,3.15348173]
[1760757182927,2.6,3868.3,3868.2,0.1288]
[1760757183092,2.86258046,3868.3,3868.2,0.1288]
[1760757183294,2.98818506,3868.3,3868.2,0.1288]
[1760757184483,2.98818506,3868.3,3868.0,0.001]
[1760757184688,2.88838506,3868.3,3868.0,0.001]
[1760757184918,0.0998,3868.2,3868.0,0.001]
[1760757185119,0.0258046,3868.1,3868.0,0.001]
[1760757185352,0.1256046,3868.1,3868.0,0.001]
[1760757186156,3.49841976,3868.1,3868.0,0.001]
[1760757186373,4.13902557,3868.1,3868.0,0.001]
[1760757187061,5.99582557,3868.1,3868.0,0.001]
[1760757187359,5.97002097,3868.1,3868.0,0.001]
[1760757194857,6.01508254,3868.1,3868.0,0.001]
[1760757195258,5.91528254,3868.1,3868.0,0.001]
[1760757195449,2.54246738,3868.1,3868.0,0.001]
[1760757195760,0.002,3869.2,3868.0,0.4388]
[1760757195962,0.002,3869.2,3868.1,0.25065248]
[1760757196160,0.002,3869.2,3869.1,0.2248]
[1760757196364,0.002,3869.2,3869.1,2.80938039]
[1760757196552,0.002,3869.2,3869.1,3.24718039]
[1760757197061,0.002,3869.2,3869.1,3.83036845]
[1760757198553,0.002,3869.2,3869.1,5.58421425]
[1760757198733,0.002,3869.2,3869.1,5.55836845]
[1760757198934,0.002,3869.2,3869.1,8.16436845]
[1760757200254,0.002,3869.2,3869.1,5.55836845]
[1760757201365,0.002,3869.2,3868.7,0.77720307]
[1760757201556,0.002,3869.2,3869.1,2.58458039]
[1760757201945,0.002,3869.2,3869.0,2.58463041]
[1760757202836,0.002,3869.2,3868.9,2.58470034]
[1760757204536,0.002,3869.2,3868.6,0.4378]
[1760757204872,0.002,3869.2,3868.2,0.4378]
[1760757205070,0.0278046,3869.2,3868.2,0.4378]
[1760757205273,0.002,3869.2,3869.1,2.80938039]
[1760757205572,0.002,3869.2,3869.1,0.6626]
[1760757205871,0.002,3869.2,3869.1,0.1288]
[1760757209354,0.1038,3869.2,3868.3,0.4531]
[1760757209648,0.0258046,3869.1,3868.8,0.1288]
[1760757210478,0.002,3869.2,3868.8,0.1288]
[1760757210663,0.0278046,3869.2,3868.8,0.1288]
[1760757211179,2.607,3869.1,3868.8,0.1288]
[1760757211368,0.0258046,3869.0,3868.8,0.1288]
[1760757213272,0.0258046,3869.0,3868.8,2.7135746]
[1760757214897,0.0258046,3869.0,3868.8,0.1288]
[1760757216780,0.0258046,3869.0,3868.8,2.71357495]
[1760757217080,2.607,3869.1,3868.8,2.71357495]
[1760757217700,0.0258046,3869.0,3868.8,0.1288]
[1760757218809,0.0258046,3869.0,3868.8,0.1298]
[1760757218983,0.28928506,3869.0,3868.8,0.1298]
[1760757220410,0.0258046,3869.0,3868.8,0.1298]
[1760757222004,0.0258046,3869.0,3868.8,2.71454647]
[1760757223281,0.0258046,3869.0,3868.8,3.16764647]
[1760757224178,0.0258046,3869.0,3868.8,0.1298]
[1760757228833,0.2265,3868.9,3868.8,0.001]
[1760757228979,0.62328556,3868.9,3868.8,0.001]
[1760757229492,0.39678556,3868.9,3868.8,0.001]
[1760757230795,0.54989016,3868.9,3868.8,0.001]
[1760757231021,0.64919016,3868.9,3868.8,0.001]
[1760757233200,0.69424572,3868.9,3868.8,0.001]
[1760757234330,0.59494572,3868.9,3868.8,0.001]
[1760757235329,0.69424572,3868.9,3868.8,0.001]
[1760757237600,0.59494572,3868.9,3868.8,0.001]
[1760757238298,0.69424572,3868.9,3868.8,0.001]
[1760757240737,0.44184112,3868.9,3868.8,0.001]
[1760757240938,0.46764572,3868.9,3868.8,0.001]
[1760757242729,0.33884572,3868.9,3868.8,0.4301]
[1760757242964,0.31304112,3868.9,3868.8,0.4301]
[1760757243105,0.04505556,3868.9,3868.8,0.4301]
[1760757243431,0.17385556,3868.9,3868.8,0.4301]
[1760757243732,0.04505556,3868.9,3868.8,0.4301]
[1760757244735,0.04505556,3868.9,3868.8,3.01488081]
[1760757245103,0.04505556,3868.9,3868.8,0.4301]
[1760757247332,0.04505556,3868.9,3868.8,3.01488081]
[1760757247635,2.607,3869.1,3869.0,2.58464719]
[1760757248026,2.607,3869.1,3869.0,3.02554719]
[1760757249011,0.002,3869.2,3869.1,2.58458039]
[1760757249338,0.002,3869.2,3869.1,3.26238039]
[1760757249524,0.002,3869.2,3869.1,2.82148039]
[1760757249736,0.002,3869.2,3869.1,3.39118039]
[1760757251541,0.002,3869.2,3869.1,0.8066]
[1760757251943,0.3686852,3869.2,3868.8,0.001]
[1760757252150,0.0258046,3869.1,3868.8,0.001]
[1760757252808,3.82350327,3869.1,3868.8,0.001]
[1760757253013,1.9527,3869.0,3868.8,0.001]
[1760757253225,4.97627345,3868.9,3868.8,0.001]
[1760757253412,5.20097345,3868.9,3868.8,0.001]
[1760757253613,5.22022365,3868.9,3868.8,0.001]
[1760757253837,5.22152365,3868.9,3868.8,0.001]
[1760757254056,5.35032365,3868.9,3868.8,0.001]
[1760757257441,8.72491238,3868.9,3868.8,0.001]
[1760757258458,8.62591238,3868.9,3868.8,0.001]
[1760757258620,8.72491238,3868.9,3868.8,0.001]
[1760757259434,8.67985758,3868.9,3868.8,0.001]
[1760757260464,8.78353246,3868.9,3868.8,0.001]
[1760757263065,8.82859031,3868.9,3868.8,0.001]
[1760757265661,8.72959031,3868.9,3868.8,0.001]
[1760757266065,8.60259031,3868.9,3868.8,0.001]
[1760757266565,4.61053273,3868.9,3868.8,0.001]
[1760757266774,4.61053273,3868.9,3868.8,0.4419]
[1760757268255,7.98512146,3868.9,3868.8,0.001]
[1760757273752,8.08462146,3868.9,3868.8,0.001]
[1760757274344,7.98512146,3868.9,3868.8,0.001]
[1760757274545,8.82055213,3868.9,3868.8,0.001]
[1760757276559,5.4459634,3868.9,3868.8,0.001]
[1760757276761,8.82055213,3868.9,3868.8,0.4594]
[1760757281473,8.82055213,3868.9,3868.8,0.001]
[1760757283967,8.82055213,3868.9,3868.8,0.4594]
[1760757285073,7.88144658,3868.9,3868.8,0.4594]
[1760757285273,4.37805785,3868.9,3868.8,0.4594]
[1760757286075,4.333,3868.9,3868.8,0.4594]
[1760757288445,4.3588046,3868.9,3868.8,0.4594]
[1760757288652,4.40385759,3868.9,3868.8,0.4594]
[1760757289984,4.3588046,3868.9,3868.8,0.4594]
[1760757292784,4.40385776,3868.9,3868.8,0.4594]
[1760757295266,4.57075776,3868.9,3868.8,0.001]
[1760757295768,4.40385776,3868.9,3868.8,0.001]
[1760757298600,4.37805316,3868.9,3868.8,0.4594]
[1760757299200,2.605,3868.9,3868.8,0.4594]
[1760757299596,2.605,3868.9,3868.8,3.17298081]
[1760757299774,2.605,3868.9,3868.8,3.74877047]
[1760757299970,2.605,3868.9,3868.8,3.17298081]
[1760757300367,2.605,3868.9,3868.8,0.5882]
[1760757301300,2.605,3868.9,3868.8,3.17298081]
[1760757306605,0.04704418,3869.2,3869.1,2.58458039]
[1760757306808,0.04704418,3869.2,3869.1,3.38970994]
[1760757307115,0.04704418,3869.2,3869.1,3.97510994]
[1760757307476,0.04704418,3869.2,3869.1,4.75240363]
[1760757308471,0.002,3869.2,3869.1,4.75240363]
[1760757312878,0.002,3869.2,3869.1,4.77824943]
[1760757313118,0.002,3869.2,3869.1,4.06900363]
[1760757313277,0.002,3869.2,3869.1,1.48442324]
[1760757313679,0.101,3869.2,3868.8,0.001]
[1760757313878,0.1656,3868.9,3868.8,0.001]
[1760757314077,2.7666,3868.9,3868.8,0.001]
[1760757314608,2.8663,3868.9,3868.8,0.001]
[1760757317306,2.7666,3868.9,3868.8,0.001]
[1760757317603,2.601,3868.9,3868.8,0.001]
[1760757319420,2.601,3868.9,3868.8,2.58578081]
[1760757319618,2.601,3868.9,3868.8,3.17118081]
[1760757320317,2.601,3868.9,3868.8,0.1298]
[1760757321123,2.601,3868.9,3868.8,2.71458081]
[1760757321828,2.601,3868.9,3868.8,3.17118081]
[1760757322698,2.601,3868.9,3868.8,0.1298]
[1760757322699,2.8663,3868.9,3868.8,0.1298]
[1760757322905,3.15763461,3868.9,3868.8,0.1298]
[1760757323439,3.15763461,3868.9,3868.8,0.001]
[1760757323937,4.91143921,3868.9,3868.8,0.001]
[1760757326096,1.728,3868.8,3868.4,0.001]
[1760757326310,5.52282209,3868.5,3868.4,0.001]
[1760757326520,8.68068476,3868.5,3868.4,0.001]
[1760757326723,8.77968476,3868.5,3868.4,0.001]
[1760757326924,1.728,3868.4,3868.0,0.001]
[1760757327233,8.10807066,3868.1,3867.9,0.001]
[1760757327403,7.54111853,3868.0,3867.9,0.001]
[1760757327601,7.61431393,3868.0,3867.9,0.001]
[1760757327803,1.728,3867.7,3867.6,0.001]
[1760757328136,3.82062669,3867.7,3867.6,0.001]
[1760757328441,6.34569134,3867.7,3867.6,0.001]
[1760757328636,6.21978674,3867.7,3867.6,0.001]
[1760757329046,2.01933461,3867.7,3867.6,0.001]
[1760757329238,4.332,3867.7,3867.6,0.001]
[1760757329536,4.332,3867.7,3867.6,0.456]
[1760757329740,4.332,3867.7,3867.6,0.001]
[1760757330037,4.3578046,3867.7,3867.6,0.001]
[1760757330241,8.15262669,3867.7,3867.6,0.001]
[1760757330408,8.97301937,3867.7,3867.6,0.001]
[1760757330911,9.07201937,3867.7,3867.6,0.001]
[1760757331265,9.11708519,3867.7,3867.6,0.001]
[1760757334333,7.38908519,3867.7,3867.6,0.001]
[1760757335461,7.79471188,3867.7,3867.6,0.001]
[1760757337677,10.38022781,3867.7,3867.6,0.001]
[1760757338177,12.10822781,3867.7,3867.6,0.001]
[1760757338794,2.58578336,3867.3,3867.2,0.001]
[1760757339080,10.99798839,3867.3,3867.2,0.001]
[1760757339267,11.07118379,3867.3,3867.2,0.001]
[1760757339467,11.47686068,3867.3,3867.2,0.001]
[1760757339847,8.89107732,3867.3,3867.2,0.001]
[1760757340045,15.28107732,3867.3,3867.2,0.001]
[1760757341168,17.86686068,3867.3,3867.2,0.001]
[1760757341478,15.28107732,3867.3,3867.2,0.001]
[1760757341981,15.32615226,3867.3,3867.2,0.001]
[1760757343449,17.91193562,3867.3,3867.2,0.001]
[1760757346266,15.32615226,3867.3,3867.2,0.001]
[1760757348668,15.22715226,3867.3,3867.2,0.001]
[1760757348868,8.82733017,3867.3,3867.2,0.001]
[1760757349088,11.02665328,3867.3,3867.2,0.001]
[1760757349452,10.76807494,3867.3,3867.2,0.456]
[1760757349653,9.04007494,3867.3,3867.2,0.456]
[1760757349903,10.76807494,3867.3,3867.2,0.456]
[1760757350071,8.995,3867.3,3867.2,0.456]
[1760757350689,10.723,3867.3,3867.2,0.456]
[1760757352002,10.723,3867.3,3867.2,0.001]
[1760757352797,10.76807475,3867.3,3867.2,0.456]
[1760757353106,10.76807475,3867.3,3867.2,0.001]
[1760757355968,10.76807475,3867.3,3867.2,0.456]
[1760757357097,10.76807475,3867.3,3867.2,0.001]
[1760757358265,10.76807475,3867.3,3867.2,0.456]
[1760757361073,8.16307475,3867.3,3867.2,0.456]
[1760757361329,10.76907475,3867.3,3867.2,0.456]
[1760757362905,4.37907475,3867.3,3867.2,0.456]
[1760757363309,4.334,3867.3,3867.2,0.456]
[1760757365012,2.606,3867.3,3867.2,0.456]
[1760757365517,2.606,3867.3,3867.2,3.04185022]
[1760757366021,0.04506547,3867.5,3867.4,2.5857165]
[1760757366219,2.65006547,3867.5,3867.4,2.5857165]
[1760757366412,2.65006547,3867.5,3867.4,3.0211165]
[1760757366597,2.65006547,3867.5,3867.4,0.4354]
[1760757368021,2.65006547,3867.5,3867.2,0.5652]
[1760757368319,2.65006547,3867.5,3867.3,0.4354]
[1760757368520,2.65006547,3867.5,3867.3,3.18163226]
[1760757368702,2.65006547,3867.5,3867.4,0.4354]
[1760757370721,2.65006547,3867.5,3867.4,3.0211165]
[1760757370889,2.65006547,3867.5,3867.4,0.4354]
[1760757373706,2.65006547,3867.5,3867.4,3.0211165]
[1760757375396,2.65006547,3867.5,3867.2,0.1298]
[1760757375625,2.65006547,3867.5,3867.3,3.02117372]
[1760757375932,2.65006547,3867.5,3867.4,0.4354]
[1760757378730,2.65006547,3867.5,3867.4,3.0211165]
[1760757378908,2.65006547,3867.5,3867.4,3.61694154]
[1760757379101,2.65006547,3867.5,3867.4,3.0211165]
[1760757379639,2.605,3867.5,3867.4,3.1499165]
[1760757381333,0.002,3867.6,3867.5,2.58564964]
[1760757381532,0.002,3867.6,3867.5,3.69834268]
[1760757381937,0.002,3867.6,3867.5,5.42634268]
[1760757382114,0.002,3867.6,3867.5,5.40048619]
[1760757385216,1e-08,3867.9,3867.8,4.31344909]
[1760757385517,1e-08,3867.9,3867.8,7.74188593]
[1760757385716,1e-08,3867.9,3867.8,8.28023144]
[1760757386748,1e-08,3867.9,3867.8,3.38403144]
[1760757386948,1e-08,3867.9,3867.3,0.77760598]
[1760757386949,1e-08,3867.9,3867.3,1.21300598]
[1760757387133,0.1008,3867.8,3867.3,0.77760598]
[1760757387457,0.1008,3867.7,3867.2,0.001]
[1760757387673,0.21240001,3867.9,3867.2,0.001]
[1760757387957,2.608,3867.8,3867.7,2.58551593]
[1760757388258,1e-08,3867.9,3867.8,2.58544909]
[1760757388641,1e-08,3867.9,3867.8,3.02084909]
[1760757389119,1e-08,3867.9,3867.8,2.58544909]
[1760757393273,1e-08,3867.9,3867.8,3.05304909]
[1760757396677,1e-08,3867.9,3867.8,4.78104909]
[1760757396875,1e-08,3867.9,3867.8,5.80181988]
[1760757397179,1e-08,3867.9,3867.8,5.77596539]
[1760757397862,1e-08,3868.3,3868.2,4.31318173]
[1760757398048,1e-08,3868.3,3868.2,4.46783354]
[1760757398368,1e-08,3868.3,3868.2,4.93543354]
[1760757398570,1e-08,3868.3,3868.2,5.9718339]
[1760757398774,1e-08,3868.3,3868.2,5.94598209]
[1760757398935,1e-08,3868.3,3868.2,6.04960916]
[1760757406483,1e-08,3868.3,3868.2,5.58200916]
[1760757406652,1e-08,3868.3,3868.2,8.18800916]
[1760757407037,1e-08,3868.3,3868.2,5.58200916]
[1760757407242,1e-08,3868.3,3868.2,6.04960916]
[1760757407638,1e-08,3868.3,3868.2,5.58200916]
[1760757407874,1e-08,3868.3,3868.2,6.04960916]
[1760757410293,0.099,3869.6,3869.5,2.58431321]
[1760757410602,0.099,3869.6,3869.5,2.71311321]
[1760757411096,0.129,3869.7,3869.6,2.58424643]
[1760757411391,0.1287,3870.0,3869.9,2.58404609]
[1760757411698,0.228,3870.0,3869.9,2.58404609]
[1760757411996,0.228,3870.0,3869.9,2.71284609]
[1760757412296,0.1287,3870.0,3869.9,2.71284609]
[1760757414093,0.1287,3870.0,3869.9,2.99014609]
[1760757417904,0.1287,3870.0,3869.9,3.54756742]
[1760757418103,0.2773,3870.2,3870.1,2.58391256]
[1760757418278,0.2773,3870.2,3870.1,2.71271256]
[1760757418598,0.178,3870.2,3870.1,2.71271256]
[1760757418798,0.178,3870.2,3870.1,2.99001256]
[1760757418969,0.178,3870.2,3870.1,3.60316056]
[1760757420924,0.178,3870.2,3870.1,3.19706056]
[1760757420925,0.0996,3870.2,3870.1,3.19706056]
[1760757421089,0.14463399,3870.6,3870.4,2.58366031]
[1760757421290,0.0996,3870.6,3870.3,2.58377323]
[1760757421495,0.0996,3870.6,3870.1,1.3901538]
[1760757421496,0.14463221,3870.6,3870.1,1.3901538]
[1760757421693,0.14463221,3870.6,3870.5,2.58364552]
[1760757422107,0.14463221,3870.6,3870.1,0.7770058]
[1760757422277,0.0996,3870.6,3870.3,2.58377281]
[1760757422484,0.0996,3870.6,3870.4,2.58370036]
[1760757422703,0.0996,3870.6,3870.1,0.7770058]
[1760757422704,0.0996,3870.6,3870.5,2.58364552]
[1760757423011,2.604,3870.9,3870.6,2.58357877]
[1760757423314,0.1007,3871.8,3871.4,2.58303581]
[1760757423509,2.605,3871.9,3871.4,2.58303581]
[1760757423510,0.1007,3871.7,3871.4,2.58303581]
[1760757423709,0.1007,3871.7,3871.5,2.58296984]
[1760757424086,0.1007,3871.7,3871.4,2.58303235]
[1760757424805,0.1007,3871.7,3871.2,2.58312737]
[1760757425105,0.1007,3871.7,3871.3,3.09971599]
[1760757425306,0.1007,3871.7,3871.4,2.58303461]
[1760757425511,0.1007,3871.7,3871.3,3.0997335]
[1760757425709,0.1007,3871.7,3871.4,2.58303654]
[1760757426030,2.605,3871.9,3871.5,2.58297814]
[1760757426183,0.1007,3871.8,3871.5,2.58297814]
[1760757426590,0.21472039,3872.0,3871.5,0.38406016]
[1760757426909,0.04502039,3872.0,3871.6,0.4723]
[1760757427082,0.04502039,3872.0,3871.8,2.58275674]
[1760757427429,2.606,3872.4,3871.9,2.58267066]
[1760757428128,2.606,3872.4,3872.0,2.58264462]
[1760757428278,2.606,3872.4,3872.0,3.17943704]
[1760757430309,2.606,3872.4,3872.0,3.65173704]
[1760757430612,2.606,3872.9,3872.0,6.25773704]
[1760757430777,2.606,3872.9,3872.0,8.11453704]
[1760757431334,0.2101,3874.0,3872.1,1.728]
[1760757431479,0.099,3873.6,3872.7,2.58216877]
[1760757431685,0.099,3873.5,3872.9,2.58198538]
[1760757431993,0.099,3873.5,3872.7,2.582127]
[1760757432190,0.099,3873.5,3872.9,2.58203247]
[1760757432389,0.099,3873.5,3873.0,2.84014979]
[1760757433001,0.099,3873.5,3873.0,0.25820325]
[1760757433210,2.611,3873.7,3873.0,0.75632302]
[1760757433411,2.611,3873.7,3873.3,2.58177681]
[1760757433611,2.611,3873.7,3873.0,2.58197561]
[1760757433793,2.611,3873.7,3873.4,2.58170672]
[1760757434209,2.611,3873.7,3873.2,2.5818348]
[1760757434415,2.611,3873.7,3873.3,2.58177781]
[1760757434715,2.611,3873.7,3873.4,2.58169346]
[1760757434913,2.611,3873.7,3873.5,2.58160894]
[1760757435305,2.611,3873.7,3873.3,1.05773962]
[1760757435306,2.611,3873.7,3873.4,2.58171115]
[1760757435499,2.611,3873.7,3873.6,0.77631614]
[1760757438793,2.611,3873.7,3873.6,3.357894]
[1760757439107,2.611,3873.7,3873.6,4.05763469]
[1760757439308,2.611,3873.7,3873.6,1.47605683]
[1760757439696,0.2101,3874.0,3873.6,1.47605683]
[1760757440513,2.61,3874.1,3873.7,0.4723]
[1760757441092,2.61,3874.1,3873.8,2.58143412]
[1760757441433,2.61,3874.1,3874.0,0.1288]
[1760757442322,0.169,3875.1,3874.0,2.58129583]
[1760757442516,2.708,3875.0,3874.0,3.05359583]
[1760757442712,2.708,3875.0,3874.1,2.58121833]
[1760757443119,2.708,3875.0,3874.0,0.6907]
[1760757443317,2.609,3875.0,3874.2,2.58117804]
[1760757443501,2.609,3875.0,3874.3,2.58111135]
[1760757443712,2.609,3875.0,3874.3,3.05341135]
[1760757444226,2.609,3875.0,3874.6,2.58086179]
[1760757444522,2.609,3875.0,3874.7,2.58082972]
[1760757444728,2.609,3875.0,3874.7,3.05312972]
[1760757444921,2.609,3875.0,3874.8,2.58077542]
[1760757445324,2.609,3875.0,3874.8,3.05307542]
[1760757445507,2.609,3875.0,3874.9,0.77760754]
[1760757445709,2.609,3875.0,3874.9,0.30530754]
[1760757446127,0.1308,3876.1,3874.9,0.77760754]
[1760757446343,1.241,3875.9,3875.0,0.4723]
[1760757446505,1.28595033,3875.9,3875.2,2.58050729]
[1760757446696,1.28595033,3875.9,3875.3,2.90755633]
[1760757447128,1.28595033,3875.9,3875.4,2.58036085]
[1760757447324,1.241,3875.9,3875.6,2.58022513]
[1760757447526,1.241,3875.9,3875.6,0.4723]
[1760757447728,1.241,3875.9,3875.5,2.58030663]
[1760757447937,1.241,3875.9,3875.6,0.4723]
[1760757448728,1.241,3875.9,3875.5,0.54879379]
[1760757449122,1.241,3875.9,3875.5,1.00849379]
[1760757449329,1.241,3875.9,3875.5,3.58880056]
[1760757449525,1.241,3875.9,3875.5,1.00849379]
[1760757449730,1.241,3875.9,3875.6,0.39160163]
[1760757449934,1.241,3875.9,3875.5,0.4597]
[1760757450610,0.1302,3875.6,3875.3,0.32712073]
[1760757450815,0.1302,3875.6,3874.8,2.58072136]
[1760757451032,0.1302,3875.6,3874.7,3.04053997]
[1760757451227,0.1302,3875.6,3874.7,0.4597]
[1760757451451,0.1302,3875.6,3874.8,2.58077836]
[1760757451712,0.0996,3875.5,3874.9,0.4034311]
[1760757451919,0.0996,3875.5,3874.6,0.2179]
[1760757452126,0.0996,3875.5,3874.7,2.58079585]
[1760757452440,0.1302,3875.6,3875.4,0.1288]
[1760757453011,0.0996,3875.5,3875.4,0.1288]
[1760757453212,0.1254046,3875.5,3875.4,0.1288]
[1760757453613,0.1254046,3875.5,3875.1,0.1288]
[1760757453845,0.0996,3875.4,3875.1,0.1288]
[1760757454044,2.61,3875.3,3875.1,0.1288]
[1760757454244,3.91021582,3875.2,3875.1,0.1288]
[1760757454549,4.5622374,3875.2,3873.5,1.23582334]
[1760757454723,4.5622374,3875.2,3874.6,0.1288]
[1760757454724,0.0996,3875.1,3874.6,0.1288]
[1760757454916,4.4626374,3875.2,3873.2,0.4597]
[1760757454917,0.1683,3874.7,3873.2,0.4597]
[1760757455118,2.7371046,3874.6,3874.3,0.1288]
[1760757455430,0.1003,3874.5,3874.3,0.1288]
[1760757455630,0.1261046,3874.4,3874.3,0.1288]
[1760757457356,0.1261046,3874.4,3873.1,0.2184]
[1760757457649,0.1003,3874.3,3873.9,0.1288]
[1760757457816,0.0258046,3874.2,3872.8,0.2179]
[1760757458013,0.14529335,3874.1,3873.6,0.1288]
[1760757458222,0.209,3873.7,3873.6,0.1288]
[1760757460125,0.0258046,3873.9,3873.6,0.1288]
[1760757460726,0.2361046,3873.9,3873.6,0.1288]
[1760757461331,0.57319362,3874.7,3873.1,0.6776]
[1760757461332,0.1683,3874.7,3873.8,0.1288]
[1760757461653,2.611,3874.6,3873.9,0.4597]
[1760757462255,2.611,3874.6,3874.5,0.1288]
[1760757462631,0.1288,3875.2,3874.5,0.5885]
[1760757462948,2.611,3875.1,3874.5,0.5885]
[1760757463153,2.611,3875.0,3874.9,0.1288]
[1760757467455,0.04498042,3875.1,3874.1,0.2179]
[1760757467654,2.611,3875.0,3874.9,0.4597]
[1760757467853,1.206,3875.0,3874.9,0.4597]
[1760757470156,1.208,3875.0,3874.9,0.4597]
[1760757471771,1.3077,3875.0,3874.2,0.45272773]
[1760757472066,1.3077,3875.0,3874.1,0.2179]
[1760757472067,0.1669,3874.9,3874.1,0.2179]
[1760757472271,1.208,3875.0,3874.2,0.4597]
[1760757473642,1.208,3875.0,3874.1,0.2179]
[1760757473840,1.208,3875.0,3874.2,0.4597]
[1760757474050,1.208,3875.0,3874.2,3.04087751]
[1760757474253,1.208,3875.0,3874.1,0.2179]
[1760757474546,0.1941046,3874.9,3874.1,0.2179]
[1760757474867,0.1683,3874.9,3874.1,0.2179]
[1760757475176,0.1941046,3874.9,3874.1,0.6776]
[1760757475539,1.208,3875.0,3874.2,0.4597]
[1760757476060,1.208,3875.0,3874.2,3.0408764]
[1760757476659,0.002,3875.0,3874.3,0.48551111]
[1760757476858,2.611,3874.9,3874.5,2.58093699]
[1760757477060,2.611,3874.9,3874.6,0.7637637]
[1760757477476,2.611,3874.9,3874.8,0.1288]
[1760757477661,0.002,3875.0,3874.8,0.1288]
[1760757477863,2.611,3874.9,3874.8,0.1288]
[1760757478945,2.7793,3874.9,3874.8,0.1288]
[1760757479483,2.611,3874.9,3874.8,0.1288]
[1760757480378,2.611,3874.9,3874.8,0.5603]
[1760757480541,0.002,3875.0,3874.8,0.5603]
[1760757480874,2.611,3874.9,3874.8,0.1288]
[1760757482173,2.611,3874.9,3874.8,0.5603]
[1760757482755,0.002,3875.0,3874.9,2.58071176]
[1760757482962,0.002,3875.0,3874.9,3.01221176]
[1760757486495,0.002,3875.0,3874.9,3.14101176]
[1760757488005,0.002,3875.0,3874.9,3.17471887]
[1760757489098,0.002,3875.0,3874.9,4.77391887]
[1760757489400,0.002,3875.0,3874.9,5.80180409]
[1760757489700,0.002,3875.0,3874.9,5.77599698]
[1760757490202,0.89820834,3876.0,3875.9,2.58004592]
[1760757490496,0.89820834,3876.0,3875.9,3.01944592]
[1760757490702,0.89820834,3876.0,3875.9,2.58004592]
[1760757490998,0.89820834,3876.0,3875.6,2.58018637]
[1760757491197,0.89820834,3876.0,3875.3,2.1674]
[1760757491198,0.89820834,3876.0,3875.1,0.4394]
[1760757491397,1.12610834,3876.0,3875.3,2.58044425]
[1760757491803,0.89820834,3876.0,3875.2,2.90002273]
[1760757492000,0.2279,3875.9,3875.0,2.58062167]
[1760757492317,0.89820834,3876.0,3874.8,2.89488291]
[1760757492318,0.2292,3875.8,3874.8,0.31411938]
[1760757492473,0.2292,3875.8,3874.7,0.4394]
[1760757492674,0.2292,3875.8,3875.2,2.58046515]
[1760757492891,0.2292,3875.8,3874.8,2.58072265]
[1760757493090,0.2292,3875.8,3875.0,2.58063338]
[1760757493483,0.2292,3875.8,3874.7,0.4394]
[1760757493802,0.2292,3875.8,3875.1,2.58054166]
[1760757494102,0.2292,3875.8,3874.8,0.21674]
[1760757494306,0.2292,3875.8,3875.0,2.58064516]
[1760757494669,0.2292,3875.8,3875.1,2.58055267]
[1760757495773,0.2292,3875.8,3875.3,2.58040704]
[1760757495975,0.1302,3875.8,3875.4,2.58037679]
[1760757496473,0.94317738,3876.0,3875.5,0.4394]
[1760757496673,1.054,3875.9,3875.5,0.4394]
[1760757496871,1.2832,3875.9,3875.1,0.4394]
[1760757497099,1.2832,3875.9,3875.1,3.01997663]
[1760757497328,1.2832,3875.9,3875.1,2.58057663]
[1760757497611,1.2832,3875.9,3875.1,0.53780069]
[1760757497779,1.2832,3875.9,3875.2,2.58045905]
[1760757499174,1.2832,3875.9,3875.8,0.1288]
[1760757499910,1.3090046,3875.9,3875.8,0.1288]
[1760757500119,1.2832,3875.9,3875.8,0.1288]
[1760757500794,1.1836,3875.9,3875.8,0.1288]
[1760757500992,1.1836,3875.9,3873.8,2.611]
[1760757500993,0.94317738,3876.0,3875.4,0.46520378]
[1760757501324,0.94317738,3876.0,3875.6,2.58022425]
[1760757501511,2.611,3875.9,3875.6,2.58022425]
[1760757502531,0.94317738,3876.0,3875.6,0.56000681]
[1760757502829,0.89820834,3876.0,3875.9,2.58004592]
[1760757502985,0.89820834,3876.0,3875.9,3.01944592]
[1760757503184,0.89820834,3876.0,3875.9,0.4394]
[1760757503717,0.89820834,3876.0,3875.9,3.01944592]
[1760757503912,0.89820834,3876.0,3875.9,3.5794067]
[1760757507825,0.90020834,3876.0,3875.9,3.5794067]
[1760757509527,0.90020834,3876.0,3875.9,3.1400067]
[1760757511030,0.90020834,3876.0,3875.9,4.9968067]